[Event "44th Chess Olympiad Open 2022"]
[Site "Chennai"]
[Date "2022.08.08"]
[Round "10.28"]
[White "Salinas Herrera, Pablo"]
[Black "Sharifov, Mekhriddin"]
[Result "0-1"]
[ECO "B51"]
[WhiteElo "2526"]
[BlackElo "2097"]
[Annotator "TA"]
[PlyCount "120"]
[EventDate "2022.07.29"]
[EventType "team-tourn"]
[EventCountry "IND"]
[SourceTitle "playchess.com"]
[Source "ChessBase"]
[SourceQuality "1"]
[WhiteTeam "Chile"]
[BlackTeam "Tajikistan"]
[WhiteTeamCountry "CHI"]
[BlackTeamCountry "TJK"]
[TimeControl "40/5400+30:1800+30"]

{[%evp 9,120,0,18,17,23,14,16,11,22,16,18,23,31,26,61,45,62,50,97,104,146,72,69,77,88,77,76,53,85,83,84,81,102,93,96,77,91,68,129,107,285,294,269,213,218,206,235,73,55,-602,-547,-623,-438,-438,-438,-438,-430,-414,-156,-220,-213,-270,0,-164,-207,-588,-460,-568,-585,-557,-281,-404,-348,-961,-955,-924,-363,-930,-935,-981,-969,-948,-907,-888,-891,-895,-861,-814,-809,-1008,-986,-1082,-1064,-1245,-1220,-1250,-1182,-1271,-1254,-1272,-1264,-1264,-1230,-1202,-1167,-29978,-29978,-29985,-29986,-29984,-29955,-1636,-1568]} 1. e4 {[%emt 0:00:02]} c5 {[%emt 0:00:07]} 2. Nf3 {[%emt 0:00:06]} d6 {[%emt 0:00:13]} 3. Bb5+ {[%emt 0:00:07]} Nd7 {[%emt 0:00:12]} 4. a4 {[%emt 0:00:07]} Ngf6 {[%emt 0:01:08]} 5. Nc3 {[%emt 0:00:06]} e6 {[%emt 0:01:41]} 6. O-O {[%emt 0:00:19] B51: Sicilian: Moscow Variation (3 Bb5+) without 3...Bd7.} a6 {[%emt 0:01:23]} 7. Be2 {[%emt 0:00:05]} b6 {[%emt 0:05:35]} 8. d4 {[%emt 0:00:05] The position is equal.} cxd4 {[%emt 0:00:19]} 9. Qxd4 {[%emt 0:00:06]} Be7 {[%emt 0:03:19]} 10. Rd1 {[%emt 0:04:47]} Qc7 {[%emt 0:02:11]} 11. Nd2 {[%emt 0:10:01]} O-O {[%emt 0:11:02]} 12. Nc4 {[%emt 0:01:29][%cal Rc4d6]} Rd8 {[%emt 0:02:24]} 13. Be3 {[%emt 0:17:47][%cal Rc4b6] [#]} (13. Nxd6 e5 14. Qd2 Nc5 $11) 13... e5 $146 {[%emt 0:09:36]} (13... Bb7 $14) ({Predecessor:} 13... Rb8 14. f3 Ne8 15. Bf2 Bf6 16. Qe3 Be5 17. f4 Bf6 18. Rd2 Be7 19. Kh1 Nc5 {½-½ (95) Filip,A (2232)-David,A (2427) Targu Mures 2022}) 14. Qd2 $16 {[%emt 0:00:26]} Nc5 {[%emt 0:00:48] [#]} 15. f3 {[%emt 0:02:53]} (15. b4 $142 $1 {[%cal Rb4c5]} Ncxe4 16. Nxe4 (16. Bxb6 Nxd2 17. Bxc7 Rd7 $16) 16... Nxe4 17. Qd3 (17. Bxb6 Qb7 $16)) 15... Be6 {[%emt 0:05:39]} 16. Nd5 $1 {[%emt 0:03:10]} Bxd5 {[%emt 0:00:09]} 17. exd5 {[%emt 0:00:06]} a5 {[%emt 0:07:25]} 18. Ra3 {[%emt 0:08:19]} Nh5 {[%emt 0:04:24]} 19. c3 {[%emt 0:01:39]} f5 {[%emt 0:12:56]} 20. Qc2 {[%emt 0:00:13]} Rf8 {[%emt 0:01:41]} 21. b4 {[%emt 0:04:33]} Nd7 {[%emt 0:00:14]} 22. bxa5 {[%emt 0:01:25]} bxa5 {[%emt 0:00:08]} 23. Rb3 {[%emt 0:00:06]} Bh4 {[%emt 0:05:58]} (23... g6 $14) 24. Rdb1 {[%emt 0:03:43]} f4 $2 {[%emt 0:05:15]} (24... Nf4 $16) 25. Rb7 $18 {[%emt 0:00:18]} Qd8 {[%emt 0:00:08]} 26. Bc1 {[%emt 0:05:57]} Nc5 {[%emt 0:11:45]} 27. R7b6 {[%emt 0:01:23]} Bg3 {[%emt 0:01:29]} 28. h3 $2 {[%emt 0:00:34]} (28. Rxd6 Qh4 29. h3 (29. hxg3 fxg3 30. Be3 Nf4 $19) 29... Bf2+ 30. Kh2 Qg3+ 31. Kh1 e4 $11) (28. hxg3 $18 {is the precise move to win.} fxg3 29. Ne3 (29. Rxd6 $2 Qh4 $19)) 28... Qh4 $16 {[%emt 0:00:35]} 29. Bd1 $2 {[%emt 0:00:04][%mdl 8192]} (29. Rxd6 Bf2+ 30. Kh2 Ng3 $11) (29. Nxd6 $14 Bf2+ 30. Kh2) 29... e4 {[%emt 0:01:39] White must now prevent ...Nd3.} 30. fxe4 {[%emt 0:00:06] [#]} Nxe4 $1 {[%emt 0:07:07][%mdl 512]} 31. Qxe4 {[%emt 0:10:15] Hoping for Bxh5.} Rae8 {[%emt 0:00:00]} 32. Qxe8 {[%emt 0:00:05]} Rxe8 {[%emt 0:00:00][%cal Re8e1]} 33. Rb8 {[%emt 0:00:05] [#]} Bf2+ $2 {[%emt 0:00:00]} (33... Qe7 $1 $19 {[%cal Re7e1]} 34. Rxe8+ Qxe8) 34. Kh2 {[%emt 0:00:06] [#]} (34. Kf1 $17 Nf6 35. Rxe8+ (35. Nxd6 $2 Ba7 $19) 35... Nxe8 36. Bf3 (36. Rb8 $2 Kf7 $19)) 34... Qe7 $1 $40 {[%emt 0:00:00][%mdl 128] ( -> ...Bg3+). White is in trouble. The board is on fire.} 35. Bd2 {[%emt 0:00:31]} (35. Rxe8+ Qxe8) 35... Ng3 {[%emt 0:00:50]} ({Don't go for} 35... Bg3+ $2 36. Kh1 Nf6 37. Nxa5 $19) ({Better is} 35... Nf6 $19 {aiming for ...Qc7.} 36. Kh1 (36. Rxe8+ $2 Nxe8 37. Bf3 Qc7 $19) 36... Bg3 37. Nxa5 Qe4) 36. Rxe8+ $2 {[%emt 0:01:03]} (36. Bxf4 $11 Nf1+ 37. Kh1 Ng3+ 38. Kh2 Nf1+ 39. Kh1 Ng3+ 40. Kh2) 36... Qxe8 {[%emt 0:00:00]} 37. Bg4 $2 {[%emt 0:00:22]} (37. Nxd6 {was the crucial defense.} Qf8 38. Nc4) 37... h5 {[%emt 0:00:37]} 38. Be6+ {[%emt 0:00:04]} Kh7 {[%emt 0:00:03]} 39. Bxf4 {[%emt 0:00:04]} Qg6 {[%emt 0:00:27]} 40. Nd2 {[%emt 0:08:27]} (40. Rb2 $142 Nf1+ 41. Kh1) 40... Ne2 {[%emt 0:00:45]} 41. Bxd6 {[%emt 0:30:41]} (41. g4 hxg4 42. hxg4 Bg3+ 43. Kg2 (43. Bxg3 $2 Qh6+ 44. Kg2 Qxd2 $19) 43... Nxf4+ 44. Kxg3 Nxe6 45. Rh1+ Kg8 46. dxe6) 41... Bg3+ {[%emt 0:30:11]} 42. Bxg3 {[%emt 0:03:52]} Qxg3+ {[%emt 0:00:30]} 43. Kh1 {[%emt 0:00:07]} Qd3 {[%emt 0:00:00]} 44. d6 {[%emt 0:00:00]} Qxd2 {[%emt 0:00:00]} 45. d7 {[%emt 0:00:00]} Kg6 {[%emt 0:00:00] Threatens to win with ...Nf4.} 46. c4 {[%emt 0:00:00]} Kf6 {[%emt 0:00:00]} 47. Bd5 {[%emt 0:00:00]} Ke7 {[%emt 0:00:00]} 48. Bc6 {[%emt 0:00:00]} Nd4 {[%emt 0:00:00]} 49. Bd5 {[%emt 0:00:00]} Kxd7 {[%emt 0:00:00]} 50. c5 {[%emt 0:00:00]} Qc3 {[%emt 0:00:00]} 51. Rd1 {[%emt 0:00:00]} Qxc5 {[%emt 0:00:00]} 52. Bf3 {[%emt 0:00:00]} g6 {[%emt 0:00:00][%cal Bg7g6,Bg6g5][%mdl 32]} 53. Be4 {[%emt 0:00:00]} g5 {[%emt 0:00:00]} 54. Bf3 {[%emt 0:00:00]} h4 {[%emt 0:00:00]} 55. Bg4+ {[%emt 0:00:00]} Kd6 {[%emt 0:00:00]} 56. Rf1 {[%emt 0:00:00]} Qc4 {[%emt 0:00:00]} 57. Rf6+ {[%emt 0:00:00]} Ke5 {[%emt 0:00:00]} 58. Rg6 {[%emt 0:00:00]} Kf4 {[%emt 0:00:00]} 59. Kh2 {[%emt 0:00:00]} Qxa4 {[%emt 0:00:00]} 60. Rf6+ {[%emt 0:00:00]} Ke5 {[%emt 0:01:20] What a bad dream for White.  Weighted Error Value: White=0.74/Black=0.37} 0-1

[Event "44th Chess Olympiad Open 2022"]
[Site "Chennai"]
[Date "2022.08.08"]
[Round "10.28"]
[White "Khusenkhojaev, Mustafokhuja"]
[Black "Morovic Fernandez, Ivan"]
[Result "1/2-1/2"]
[ECO "E11"]
[WhiteElo "2238"]
[BlackElo "2489"]
[Annotator "TA"]
[PlyCount "56"]
[EventDate "2022.07.29"]
[EventType "team-tourn"]
[EventCountry "IND"]
[SourceTitle "playchess.com"]
[Source "ChessBase"]
[SourceQuality "1"]
[WhiteTeam "Tajikistan"]
[BlackTeam "Chile"]
[WhiteTeamCountry "TJK"]
[BlackTeamCountry "CHI"]
[TimeControl "40/5400+30:1800+30"]

{[%evp 15,56,4,7,7,8,5,24,20,37,30,30,24,30,20,29,21,11,25,29,29,22,9,10,6,6,14,9,8,7,7,18,0,5,3,16,12,15,0,8,0,22,0,10]} 1. d4 {[%emt 0:00:04]} Nf6 {[%emt 0:00:27]} 2. Nf3 {[%emt 0:00:11]} d5 {[%emt 0:00:19]} 3. c4 {[%emt 0:00:18]} e6 {[%emt 0:00:41]} 4. g3 {[%emt 0:01:45]} Bb4+ {[%emt 0:02:21]} 5. Bd2 {[%emt 0:00:14]} Be7 {[%emt 0:00:04]} 6. Bg2 {[%emt 0:00:11]} O-O {[%emt 0:00:04]} 7. Qc2 {[%emt 0:01:03]} c6 {[%emt 0:01:26]} 8. O-O {[%emt 0:00:21]} b6 {[%emt 0:00:37]} 9. Rd1 $1 {[%emt 0:13:38] 9.Rd1 is better than 9.Bf4. E11: Bogo-Indian.} Ba6 {[%emt 0:10:32]} 10. Ne5 {[%emt 0:00:00] has lost popularity (10.b3).} Nfd7 {[%emt 0:04:10]} 11. cxd5 {[%emt 0:03:22] White has an edge.} cxd5 {[%emt 0:00:32]} 12. e4 {[%emt 0:05:04]} Nxe5 {[%emt 0:02:40]} 13. exd5 {[%emt 0:07:31]} ({Much worse is} 13. dxe5 d4 14. b4 Qd7 $15) 13... Be2 {[%emt 0:00:28] [#] Strongly threatening ...Nf3+.} (13... exd5 14. dxe5 Be2 15. Nc3 Bxd1 16. Rxd1 $16) 14. dxe5 {[%emt 0:00:19]} Bxd1 {[%emt 0:00:10]} 15. Qxd1 {[%emt 0:00:06] d6 is the strong threat.} exd5 {[%emt 0:00:04]} 16. Nc3 {[%emt 0:00:24]} Nc6 {[%emt 0:00:05][%cal Od5d4,Bb8c6,Bc6e5,Be5g6][%mdl 32]} 17. Nxd5 {[%emt 0:00:18] Black must now prevent Bc3.} Nxe5 {[%emt 0:00:09]} 18. Nxe7+ {[%emt 0:00:06] The position is equal.} (18. Bc3 {feels hotter.} Bd6 19. f4 Ng6 20. f5) 18... Qxe7 {[%emt 0:00:06]} 19. Bxa8 {[%emt 0:00:09]} Rxa8 {[%emt 0:00:05]} 20. Bc3 {[%emt 0:00:18] [#] aiming for Qd5.} Rd8 {[%emt 0:23:36] Inhibits Qd5.} 21. Qe2 {[%emt 0:03:11]} (21. Qh5 {is more complex.} Nd3 22. Rd1 f6 23. Qg4) 21... Ng6 {[%emt 0:01:19] [#]} 22. Qf3 $146 {[%emt 0:02:07]} ({Predecessor:} 22. Qxe7) 22... Qd7 {[%emt 0:24:06]} 23. Re1 {[%emt 0:04:30]} f6 {[%emt 0:08:40]} 24. h4 {[%emt 0:06:09]} Qd5 {[%emt 0:04:24]} 25. Qg4 {[%emt 0:04:30]} Qd7 {[%emt 0:04:10]} 26. Qf3 {[%emt 0:03:54]} Qd5 {[%emt 0:01:07]} 27. Qg4 {[%emt 0:00:20]} Qd7 {[%emt 0:04:17]} 28. Qf3 {[%emt 0:01:00]} Qd5 {[%emt 0:02:28] Weighted Error Value: White=0.04 (flawless) /Black=0.03 (flawless)} 1/2-1/2

[Event "44th Chess Olympiad Open 2022"]
[Site "Chennai"]
[Date "2022.08.08"]
[Round "10.29"]
[White "Makoto, Rodwell"]
[Black "Batsuren, Dambasuren"]
[Result "0-1"]
[ECO "E01"]
[WhiteElo "2346"]
[BlackElo "2518"]
[Annotator "TA"]
[PlyCount "78"]
[EventDate "2022.07.29"]
[EventType "team-tourn"]
[EventCountry "IND"]
[SourceTitle "playchess.com"]
[Source "ChessBase"]
[SourceQuality "1"]
[WhiteTeam "Zimbabwe"]
[BlackTeam "Mongolia"]
[WhiteTeamCountry "ZIM"]
[BlackTeamCountry "MGL"]
[TimeControl "40/5400+30:1800+30"]

{[%evp 9,78,-2,29,-5,0,-14,-13,-28,-25,-49,-50,-43,-45,-54,-27,-27,-24,-33,-33,-49,-41,-41,-32,-50,-40,-48,-43,-50,-20,-18,-23,-25,-21,-14,-22,-41,-37,-41,-39,-49,-36,-50,0,-75,13,-93,-26,-93,-77,-74,-83,-137,-138,-196,-181,-223,-217,-619,-626,-556,-300,-267,-292,-274,-286,-262,-201,-269,-234,-572,-354]} 1. Nf3 {[%emt 0:02:16]} Nf6 {[%emt 0:00:18]} 2. c4 {[%emt 0:00:30]} e6 {[%emt 0:00:07]} 3. g3 {[%emt 0:00:10]} d5 {[%emt 0:00:10]} 4. d4 {[%emt 0:00:51]} dxc4 {[%emt 0:00:51]} 5. Qa4+ {[%emt 0:01:28]} Nc6 {[%emt 0:01:00]} 6. Qxc4 {[%emt 0:01:15] E01: Catalan: Early deviations.} (6. Bg2 {with more complications.} Bb4+ 7. Bd2 Nd5 8. Bxb4 Ndxb4 9. O-O) 6... Qd5 {[%emt 0:00:53]} 7. Qxd5 {[%emt 0:04:56]} exd5 {[%emt 0:00:26]} 8. Bg2 {[%emt 0:01:41] The position is equal.} Nb4 {[%emt 0:02:35] [#] And now ...Nc2+ would win.} 9. Na3 {[%emt 0:00:34] Prevents Nc2+.} c6 {[%emt 0:01:00] Inhibits Nb5.} 10. O-O {[%emt 0:00:40]} Be7 {[%emt 0:01:47][%cal Bf8e7,Be7b4,Bb4d2][%mdl 32]} 11. Bd2 {[%emt 0:00:43]} a5 {[%emt 0:03:49]} 12. Rfc1 {[%emt 0:00:27]} Bf5 {[%emt 0:00:29] [#]} 13. Ne1 $146 {[%emt 0:03:19][%cal Bf3e1,Be1d3,Bd3c5][%mdl 32]} ({Predecessor:} 13. Nh4 Bg4 14. f3 Be6 15. Bf1 Kd7 16. Nb1 a4 17. a3 Na6 18. Nc3 Nc7 19. Ng2 {½-½ (51) Ibrayev,N (2468)-Laznicka,V (2594) Pardubice 2007}) 13... Ne4 {[%emt 0:02:09]} 14. Bxb4 {[%emt 0:17:47]} Bxb4 {[%emt 0:04:18]} 15. Nac2 {[%emt 0:00:34]} Bd2 {[%emt 0:11:26]} 16. Rd1 {[%emt 0:01:16] Bxe4 is the strong threat.} Bh6 {[%emt 0:02:53]} 17. Nd3 {[%emt 0:03:30]} Nd6 {[%emt 0:01:19]} 18. Nce1 {[%emt 0:02:49]} O-O {[%emt 0:00:59]} 19. e3 {[%emt 0:00:48]} Rfe8 {[%emt 0:00:36]} 20. Nc5 {[%emt 0:02:17]} a4 {[%emt 0:05:18]} 21. h3 {[%emt 0:10:39]} g6 {[%emt 0:11:23]} 22. g4 {[%emt 0:06:34]} Bc8 {[%emt 0:00:00]} 23. Nf3 {[%emt 0:01:17]} Bg7 {[%emt 0:00:00]} 24. b3 {[%emt 0:05:46]} a3 {[%emt 0:01:00]} 25. Rac1 {[%emt 0:00:16]} h6 {[%emt 0:09:13]} (25... f5 $15) 26. Ne5 {[%emt 0:06:18]} (26. Bf1 $11) 26... g5 {[%emt 0:01:20]} (26... Bxe5 $17 27. dxe5 Rxe5) 27. Rc2 {[%emt 0:07:08]} (27. Ned7 $11) 27... Re7 {[%emt 0:03:09]} (27... Bxe5 $17 28. dxe5 Rxe5) 28. Bf3 {[%emt 0:05:14]} (28. Ncd3 $11 {keeps the balance.}) 28... Bxe5 $17 {[%emt 0:07:35]} 29. dxe5 {[%emt 0:00:36]} Rxe5 {[%emt 0:07:14]} 30. e4 {[%emt 0:10:20]} ({Only move:} 30. b4) 30... dxe4 {[%emt 0:00:00]} 31. Rxd6 {[%emt 0:00:13]} (31. Bg2 $17 Rd5 32. Rcc1) 31... exf3 $19 {[%emt 0:00:00]} 32. Rd8+ {[%emt 0:00:35]} Kg7 {[%emt 0:01:29]} 33. Rc3 $2 {[%emt 0:01:51]} (33. Nd3 Rd5 34. Rxd5 cxd5 35. Nb4) 33... Re2 {[%emt 0:00:00]} 34. Rxf3 {[%emt 0:01:16] [#]} Bxg4 $1 {[%emt 0:00:00][%mdl 512]} 35. Rxf7+ {[%emt 0:01:23]} Kxf7 {[%emt 0:00:00]} 36. Rxa8 {[%emt 0:00:03] KRB-KRN} Bf3 {[%emt 0:00:00]} ({Wrong is} 36... Bxh3 $2 37. Rxa3 b6 38. Na4 $19) ({Not} 36... Rxa2 37. hxg4 b5 38. Kf1 $14) 37. Rxa3 {[%emt 0:00:35]} Re1+ {[%emt 0:04:34]} 38. Kh2 {[%emt 0:00:02]} h5 {[%emt 0:02:39] ( -> ...h4)} 39. b4 $2 {[%emt 0:00:52]} (39. Nd3 {is tougher.} Rh1+ 40. Kg3) 39... Rh1+ {[%emt 0:00:50] Weighted Error Value: White=0.44/Black=0.21 (precise)} 0-1

[Event "44th Chess Olympiad Open 2022"]
[Site "Chennai"]
[Date "2022.08.08"]
[Round "10.29"]
[White "Zhemba, Jemusse"]
[Black "Bilguun, Sumiya"]
[Result "1/2-1/2"]
[ECO "A37"]
[WhiteElo "2162"]
[BlackElo "2463"]
[Annotator "TA"]
[PlyCount "85"]
[EventDate "2022.07.29"]
[EventType "team-tourn"]
[EventCountry "IND"]
[SourceTitle "playchess.com"]
[Source "ChessBase"]
[SourceQuality "1"]
[WhiteTeam "Zimbabwe"]
[BlackTeam "Mongolia"]
[WhiteTeamCountry "ZIM"]
[BlackTeamCountry "MGL"]
[TimeControl "40/5400+30:1800+30"]

{[%evp 19,85,0,0,0,0,0,18,-1,-8,-28,-42,-33,0,0,0,0,0,0,0,-68,-47,-41,-41,-46,-41,-44,-25,-66,-64,-62,-58,-55,-49,-89,12,0,56,48,51,40,38,-20,-20,-17,-20,-16,-29,-24,-26,-26,0,0,0,0,0,0,0,0,0,0,0,0,0,0,0,0,0,0]} 1. Nf3 {[%emt 0:00:04]} c5 {[%emt 0:00:07]} 2. g3 {[%emt 0:00:31]} g6 {[%emt 0:00:07]} 3. Bg2 {[%emt 0:00:19]} Bg7 {[%emt 0:00:07]} 4. O-O {[%emt 0:00:15]} Nc6 {[%emt 0:00:05]} 5. c4 {[%emt 0:01:33]} e5 {[%emt 0:00:10]} 6. Nc3 {[%emt 0:00:45]} d6 {[%emt 0:00:19]} 7. d3 {[%emt 0:00:47]} Nge7 {[%emt 0:00:18]} 8. a3 {[%emt 0:00:47]} a5 {[%emt 0:00:09]} 9. Ne1 {[%emt 0:02:01]} Be6 {[%emt 0:02:24]} 10. Nc2 {[%emt 0:00:29]} d5 {[%emt 0:09:28]} 11. cxd5 {[%emt 0:02:24] A37: Symmetrical English vs ...g6: 4 Bg2 Bg7 5 Nf3.} Nxd5 {[%emt 0:00:13]} 12. Ne3 {[%emt 0:00:15][%cal Rg2d5]} Nb6 {[%emt 0:10:15]} 13. Ne4 {[%emt 0:02:55]} Qe7 {[%emt 0:02:11]} 14. Nc4 {[%emt 0:06:40]} Nxc4 {[%emt 0:11:27]} 15. dxc4 {[%emt 0:00:03] [#]} Rd8 $146 {[%emt 0:00:21] Prevents Nd6+.} ({Predecessor:} 15... O-O 16. Bg5 f6 17. Be3 Rfd8 18. Qa4 Nd4 19. Bxd4 cxd4 20. Qb5 f5 21. Nc5 Bf7 {1-0 (39) Cu Hor,W (2306)-Garcia Guerrero,I (2332) Santa Clara 2017}) 16. Qa4 {[%emt 0:00:37] [#] Black must now prevent Bg5.} O-O {[%emt 0:03:34]} 17. Bg5 {[%emt 0:01:28]} f6 {[%emt 0:00:18]} 18. Be3 {[%emt 0:00:06]} Nd4 {[%emt 0:03:31]} 19. Nc3 {[%emt 0:02:19]} (19. Qxa5 $11 Bxc4 20. Qb6) 19... Qf7 {[%emt 0:09:49]} 20. Bxd4 {[%emt 0:02:14]} cxd4 {[%emt 0:01:05]} ({But not} 20... exd4 21. Nd5 $14) (20... Rxd4 21. b3 $14) 21. Nd5 {[%emt 0:00:21]} f5 {[%emt 0:01:07]} 22. Rac1 {[%emt 0:05:46]} Ra8 {[%emt 0:03:43]} 23. Nb6 {[%emt 0:01:59]} Ra6 {[%emt 0:00:55]} 24. Qb5 {[%emt 0:00:36]} e4 {[%emt 0:00:12]} 25. c5 {[%emt 0:02:48]} Qc7 {[%emt 0:13:06]} 26. Kh1 {[%emt 0:01:56] [#]} h5 {[%emt 0:02:00]} (26... Qc6 $1 $17 {[%cal Rc6b5]} 27. a4 Ra7) 27. f3 $1 $11 {[%emt 0:01:58]} h4 {[%emt 0:04:18]} ({Better is} 27... exf3 $11 28. Bxf3 Rd8) 28. fxe4 {[%emt 0:01:03]} hxg3 {[%emt 0:05:04]} 29. exf5 {[%emt 0:01:52]} gxf5 {[%emt 0:00:38]} 30. Qd3 {[%emt 0:01:31]} (30. Nd5 $14 Bxd5 31. Bxd5+ Kh8 32. c6 (32. Qxb7 Qxb7 33. Bxb7 Rh6 $14) (32. Bxb7 $2 Rh6 $19)) 30... Bh6 {[%emt 0:03:30] This bishop pair is nice.} 31. Qxg3+ {[%emt 0:00:16]} Qxg3 {[%emt 0:00:10]} 32. hxg3 {[%emt 0:00:06]} Bxc1 {[%emt 0:00:21]} 33. Rxc1 {[%emt 0:00:12]} Rf7 {[%emt 0:02:03]} 34. Rd1 {[%emt 0:00:14]} Rc7 {[%emt 0:02:15]} 35. b4 {[%emt 0:05:00] The position is equal.} axb4 {[%emt 0:00:07]} 36. axb4 {[%emt 0:00:01]} Bb3 {[%emt 0:00:33]} 37. Rxd4 {[%emt 0:00:56]} Ra1+ {[%emt 0:00:56]} 38. Kh2 {[%emt 0:00:15]} Rh7+ {[%emt 0:00:36]} 39. Rh4 {[%emt 0:00:23]} Re7 {[%emt 0:01:53]} 40. Bf3 {[%emt 0:00:14]} Be6 {[%emt 0:06:50]} 41. Kg2 {[%emt 0:30:57]} Kg7 {[%emt 0:05:34]} 42. Kf2 {[%emt 0:00:00]} Rb1 {[%emt 0:01:43]} 43. Rf4 {[%emt 0:00:00] Weighted Error Value: White=0.12 (very precise) /Black=0.13 (very precise)} 1/2-1/2

[Event "44th Chess Olympiad Open 2022"]
[Site "Chennai"]
[Date "2022.08.08"]
[Round "10.30"]
[White "Taher, Yoseph Theolifus"]
[Black "Wong, Yinn Long"]
[Result "1/2-1/2"]
[ECO "B51"]
[WhiteElo "2463"]
[BlackElo "2381"]
[Annotator "TA"]
[PlyCount "78"]
[EventDate "2022.07.29"]
[EventType "team-tourn"]
[EventCountry "IND"]
[SourceTitle "playchess.com"]
[Source "ChessBase"]
[SourceQuality "1"]
[WhiteTeam "Indonesia"]
[BlackTeam "Malaysia"]
[WhiteTeamCountry "INA"]
[BlackTeamCountry "MAS"]
[TimeControl "40/5400+30:1800+30"]

{[%evp 14,78,17,18,36,36,45,41,33,16,15,0,0,-43,-56,-29,-28,-38,-27,-82,-54,-48,-33,-52,-78,-62,58,45,52,15,24,12,17,-105,-101,-143,-136,-153,0,-236,0,0,0,0,0,0,0,-46,0,-68,0,-16,0,-87,0,0,0,0,0,0,0,0,0,0,0,0,0]} 1. e4 {[%emt 0:00:19]} c5 {[%emt 0:00:23]} 2. Nf3 {[%emt 0:00:12]} Nc6 {[%emt 0:00:15]} 3. Bb5 {[%emt 0:00:21]} d6 {[%emt 0:00:43]} 4. O-O {[%emt 0:00:09]} Bd7 {[%emt 0:00:08]} 5. Re1 {[%emt 0:00:07]} Nf6 {[%emt 0:00:05]} 6. c3 {[%emt 0:00:04]} a6 {[%emt 0:00:08]} 7. Bf1 {[%emt 0:00:05]} Bg4 {[%emt 0:00:33]} 8. d4 {[%emt 0:00:06]} Bxf3 {[%emt 0:02:17] B51: Sicilian: Moscow Variation (3 Bb5+) without 3...Bd7.} 9. gxf3 {[%emt 0:00:05]} cxd4 $1 {[%emt 0:00:09][%mdl 4] is recently more successful than 9...g5.} 10. cxd4 {[%emt 0:00:05]} d5 {[%emt 0:01:38] White is slightly better.} 11. e5 {[%emt 0:00:18]} (11. Nc3 $5 {[%cal Rc1g5]}) 11... Nh5 {[%emt 0:00:12]} 12. e6 {[%emt 0:02:07]} (12. f4 $5 {[%cal Rd1h5]} g6 13. f5 $11) 12... g6 {[%emt 0:02:35] [#]} 13. exf7+ $146 {[%emt 0:01:14]} ({Predecessor:} 13. Nc3 f5 14. Qb3 Nxd4 15. Qxb7 Rb8 16. Qxa6 Nxf3+ 17. Kh1 Qc7 18. Qa4+ Kd8 19. Bf4 Nxf4 20. Nb5 Qb6 21. Nd4 {1-0 (21) Svidler,P (2729)-Albornoz Cabrera,C (2581) Khanty-Mansiysk 2019}) 13... Kxf7 {[%emt 0:00:02]} 14. Bh3 {[%emt 0:00:06]} Ng7 {[%emt 0:19:12] Inhibits Be6+.} 15. Bg5 {[%emt 0:43:04]} Qd6 {[%emt 0:00:00]} 16. Qd2 {[%emt 0:01:14]} (16. Nd2 $11) 16... e6 {[%emt 0:00:00]} 17. Nc3 {[%emt 0:00:11]} Be7 {[%emt 0:00:00]} 18. Bf4 {[%emt 0:16:48]} Qd7 {[%emt 0:17:08]} 19. Be5 {[%emt 0:00:00]} Bf6 {[%emt 0:09:18]} (19... Nxe5 $15 20. dxe5 Rhf8) 20. Bxf6 $14 {[%emt 0:00:00]} Kxf6 {[%emt 0:00:01]} 21. Qf4+ {[%emt 0:00:00]} (21. Na4 $5 {[%cal Rd2f4]} Qd6 22. Re2 $14) 21... Nf5 {[%emt 0:00:17]} 22. Bxf5 {[%emt 0:00:00]} exf5 {[%emt 0:01:19]} 23. Re5 {[%emt 0:04:12]} Nxe5 $17 {[%emt 0:03:42]} 24. Qxe5+ {[%emt 0:00:07]} Kf7 {[%emt 0:00:38]} 25. Nxd5 {[%emt 0:00:06] [#]} Rhe8 $2 {[%emt 0:01:01]} ({Black should play} 25... Qd8 $1 $17 {Hoping for ...Rc8.} 26. Ne3 (26. Re1 $2 Re8 $19) 26... Rc8) 26. Qf6+ $11 {[%emt 0:00:06]} Kg8 {[%emt 0:00:04]} 27. Rc1 $1 {[%emt 0:00:31][%cal Oc1c7]} Re6 {[%emt 0:05:45]} (27... Qxd5 {gets mated.} 28. Rc7) 28. Rc7 {[%emt 0:02:41]} Qxc7 {[%emt 0:04:04]} 29. Qxe6+ {[%emt 0:00:04][%mdl 4096] Endgame KQR-KQN} Qf7 {[%emt 0:00:04]} 30. Qd6 {[%emt 0:00:13]} (30. Qe5 $11) 30... Rf8 {[%emt 0:04:22]} (30... Qf8 $15 31. Qe5 Qg7) 31. h4 {[%emt 0:02:19]} ({White should try} 31. f4 $11) 31... f4 {[%emt 0:13:08]} (31... h6 $15) 32. Qe5 {[%emt 0:01:36] [#] And now Ne7+ would win.} Qg7 {[%emt 0:01:14]} 33. Qe4 {[%emt 0:00:37]} (33. Qe6+ $1 $11 {keeps the balance.} Rf7 34. Qb6) 33... g5 {[%emt 0:03:32]} ({Better is} 33... Rd8 $17) 34. h5 {[%emt 0:02:00] The position is equal.} g4 {[%emt 0:03:26]} 35. Qe6+ {[%emt 0:00:00]} Qf7 {[%emt 0:04:21]} 36. Qe5 {[%emt 0:00:48] aiming for Ne7+.} Qg7 {[%emt 0:03:08]} 37. Qe6+ $1 {[%emt 0:10:16]} Qf7 {[%emt 0:00:00]} 38. Qe5 {[%emt 0:03:01] Ne7+ is the strong threat.} Qg7 {[%emt 0:00:00]} 39. Qe6+ $1 {[%emt 0:05:27]} Qf7 {[%emt 0:00:00] Weighted Error Value: White=0.25 (precise) /Black=0.21 (precise)} 1/2-1/2